bitfinex/quotes_ETHUSD_20260306
["timestamp","ask_amount","ask_price","bid_price","bid_amount"]
[1772826073365,0.002,1989.2,1988.7,0.92826628]
[1772826075755,0.002,1989.2,1988.8,2.1853057]
[1772826076178,0.002,1989.2,1988.9,0.92826628]
[1772826076380,1.75594079,1989.5,1988.9,0.92826628]
[1772826077090,0.50007632,1989.4,1988.9,0.92826628]
[1772826078097,1.75679306,1989.4,1988.9,2.18519088]
[1772826078413,0.64483532,1989.3,1988.4,2.1855072]
[1772826078701,0.64483532,1989.3,1988.4,2.18554916]
[1772826079194,0.64483532,1989.3,1988.5,0.92826628]
[1772826080378,0.6465841,1989.1,1988.2,0.92826628]
[1772826080579,0.6465841,1989.1,1988.2,2.18568505]
[1772826080983,0.6465841,1989.1,1988.2,0.92826628]
[1772826081161,0.6465841,1989.1,1988.1,1.25744178]
[1772826082069,0.6465841,1989.1,1988.0,0.92826628]
[1772826082265,0.6465841,1989.1,1988.0,2.18576938]
[1772826082473,0.64829631,1988.9,1988.0,2.18576938]
[1772826083560,2.09329631,1988.9,1988.0,2.18576938]
[1772826083757,0.64913365,1988.8,1987.9,0.001]
[1772826083980,2.9972517,1988.7,1987.9,1.25860467]
[1772826084174,0.64913365,1988.8,1987.9,1.25860467]
[1772826084378,0.64997566,1988.5,1987.9,1.25860467]
[1772826085275,0.64997566,1988.5,1987.9,0.001]
[1772826085476,0.64997566,1988.5,1987.9,0.92926628]
[1772826085695,1.90793507,1988.7,1987.9,0.92926628]
[1772826086365,1.90793507,1988.7,1988.0,2.18581155]
[1772826086765,0.65161875,1988.6,1988.0,2.18581155]
[1772826087339,0.65161875,1988.6,1988.0,0.92826628]
[1772826088990,0.65400975,1988.4,1987.9,0.001]
[1772826089217,1.25722906,1988.5,1987.9,0.92926628]
[1772826090271,1.91118027,1988.6,1987.9,0.92926628]
[1772826091064,1.91118027,1988.6,1988.0,2.18581155]
[1772826091270,0.65555168,1988.5,1987.9,0.001]
[1772826091467,0.65555168,1988.5,1987.9,1.25859672]
[1772826092101,0.65555168,1988.5,1987.9,2.1367587]
[1772826092311,0.65555168,1988.5,1988.0,0.87816198]
[1772826095203,1.91283632,1988.5,1988.1,1.25748201]
[1772826095897,0.65555168,1988.5,1988.1,2.13564399]
[1772826096287,1.91278132,1988.5,1988.1,2.13564399]
[1772826096879,0.65555168,1988.5,1988.1,2.13564399]
[1772826097085,5.02863405,1988.7,1988.2,0.87816198]
[1772826097086,0.66069882,1988.7,1988.2,0.87816198]
[1772826097687,1.9178624,1988.7,1988.2,2.13552054]
[1772826098588,0.66069882,1988.7,1988.2,2.13552054]
[1772826098794,1.91782012,1988.7,1988.2,2.13552054]
[1772826098994,2.70308051,1988.8,1988.3,0.87816198]
[1772826099205,1.446,1988.8,1988.3,0.87816198]
[1772826099508,0.002,1988.9,1988.2,1.25735856]
[1772826099679,0.002,1988.9,1988.5,0.87816198]
[1772826102110,1.92078762,1989.4,1988.8,0.87816198]
[1772826102407,3.36766328,1989.6,1988.8,0.87816198]
[1772826102611,0.66609922,1989.5,1988.8,0.87816198]
[1772826103388,2.60222063,1989.9,1988.8,0.87816198]
[1772826103594,0.66676845,1989.7,1988.8,0.87816198]
[1772826104610,1.2563787,1989.9,1989.0,0.87816198]
[1772826105182,1.92445663,1989.9,1989.0,0.87816198]
[1772826106015,6.81256991,1990.0,1989.0,0.87816198]
[1772826106016,0.34224863,1990.0,1989.0,0.87816198]
[1772826106216,0.34224863,1990.0,1989.2,0.87816198]
[1772826106388,0.34224863,1990.0,1989.3,1.25672347]
[1772826106591,0.34224863,1990.0,1989.4,0.87816198]
[1772826107710,1.92476811,1990.4,1989.5,0.87816198]
[1772826108215,0.6699505,1990.3,1989.5,0.87816198]
[1772826108606,0.6699505,1990.6,1989.7,0.87816198]
[1772826110311,2.41395046,1990.3,1989.5,0.87816198]
[1772826110515,0.67117031,1990.1,1989.0,0.87816198]
[1772826110718,1.92745171,1990.0,1989.2,0.87816198]
[1772826110911,0.67176529,1989.9,1989.2,0.87816198]
[1772826111502,0.67176529,1989.9,1989.8,0.001]
[1772826111703,0.67176529,1989.9,1989.2,0.87816198]
[1772826112028,1.2562814,1990.0,1988.8,0.87816198]
[1772826112029,0.77809614,1989.7,1988.8,0.87816198]
[1772826112227,0.77809614,1989.5,1988.8,0.87816198]
[1772826112736,0.77809614,1989.5,1988.9,2.13513819]
[1772826112944,2.03469465,1989.5,1988.9,2.13513819]
[1772826113501,0.77809614,1989.5,1988.9,2.13513819]
[1772826113724,2.69658575,1989.6,1988.9,2.13513819]
[1772826113725,2.69758575,1989.6,1989.0,0.87816198]
[1772826114026,0.77941752,1989.9,1989.0,0.87816198]
[1772826114232,2.03576602,1989.9,1989.0,0.87816198]
[1772826114416,2.03577387,1989.9,1989.0,0.87816198]
[1772826114737,2.03577387,1989.9,1989.2,0.87816198]
[1772826116718,1.437,1990.0,1989.2,0.87816198]
[1772826117033,1.437,1990.0,1989.4,0.8719676]
[1772826117237,3.47528024,1990.0,1989.4,0.8719676]
[1772826118218,2.2189733,1990.0,1989.4,0.8719676]
[1772826118415,1.437,1990.0,1989.4,0.8719676]
[1772826118620,2.03875593,1990.2,1989.4,0.8719676]
[1772826119334,2.03875593,1990.2,1989.6,0.8719676]
[1772826120529,2.03875593,1990.2,1988.9,0.8719676]
[1772826120530,0.783797,1990.1,1988.9,0.8719676]
[1772826121822,1.2562814,1990.0,1989.0,1.25691302]
[1772826122022,1.2562814,1990.0,1989.1,0.95688173]
[1772826122416,2.04185449,1990.0,1989.1,0.95688173]
[1772826122621,0.78557309,1989.9,1989.1,0.95688173]
[1772826124258,2.04315957,1989.8,1989.2,1.25678664]
[1772826124440,2.04315957,1989.8,1989.2,2.21366837]
[1772826125410,1.25621828,1990.1,1989.3,0.95688173]
[1772826125737,1.87234236,1990.1,1989.3,0.95688173]
[1772826125960,0.61612408,1990.1,1989.3,0.95688173]
[1772826126254,1.87271155,1990.4,1989.3,0.95688173]
[1772826126433,1.87271155,1990.4,1989.5,0.95688173]
[1772826127742,0.6172341,1990.3,1989.5,0.95688173]
[1772826128520,1.87336041,1990.3,1989.7,0.95688173]
[1772826128737,1.25612631,1990.3,1989.7,0.95688173]
[1772826128916,1.87628433,1990.5,1989.7,0.95688173]
[1772826130147,3.61779713,1990.4,1989.7,0.95688173]
[1772826130349,0.61884276,1990.3,1989.7,0.95688173]
[1772826130643,1.87495813,1990.3,1989.8,1.25640767]
[1772826131743,1.87495813,1990.3,1989.7,0.95688173]
[1772826131949,0.61982016,1990.2,1989.6,1.25653236]
[1772826132119,0.61982016,1990.2,1989.6,2.21341409]
[1772826132318,0.61982016,1990.2,1989.6,0.95688173]
[1772826132670,1.25621828,1990.1,1989.6,0.95688173]
[1772826132830,1.25621828,1990.1,1989.2,5.02709134]
[1772826132831,1.87651164,1990.1,1989.3,0.95688173]
[1772826133017,0.62029336,1990.0,1989.3,0.95688173]
[1772826133222,0.62029336,1989.9,1989.3,0.95688173]
[1772826134224,2.69721828,1990.1,1989.3,0.95688173]
[1772826134434,3.62552426,1990.0,1989.3,0.95688173]
[1772826134631,3.62552426,1990.0,1989.4,1.25666029]
[1772826134632,1.25634453,1989.9,1989.4,1.25666029]
[1772826134921,1.25634453,1989.9,1989.3,2.21355489]
[1772826136019,1.25634453,1989.9,1989.4,0.95688173]
[1772826136876,1.25634453,1989.9,1989.4,2.21348096]
[1772826137363,1.87849601,1989.9,1989.4,2.21348096]
[1772826138263,1.25634453,1989.9,1989.4,2.21348096]
[1772826138434,1.25634453,1989.9,1989.5,0.95688173]
[1772826138638,1.443,1990.0,1989.5,0.95688173]
[1772826138838,2.6993382,1990.0,1989.5,2.21342302]
[1772826139069,0.002,1989.8,1989.5,2.21342302]
[1772826139366,5.02503883,1990.1,1989.5,2.21342302]
[1772826139367,1.443,1990.1,1989.6,0.95688173]
[1772826139662,0.002,1989.9,1989.6,0.95688173]
[1772826140442,0.002,1989.9,1989.5,1.25654129]
[1772826140845,1.8842494,1989.9,1989.3,1.2577037]
[1772826141482,1.8842494,1989.9,1989.3,1.25771742]
[1772826141655,1.8842494,1989.9,1989.4,0.95688173]
[1772826143084,1.8842494,1989.9,1989.3,1.25771742]
[1772826143654,1.88510069,1989.9,1989.3,1.25771742]
[1772826143859,0.62675616,1989.8,1989.3,1.25771742]
[1772826145405,1.88321476,1989.8,1989.3,1.25771742]
[1772826146257,0.6279981,1989.7,1989.3,0.001]
[1772826146578,5.08325232,1989.6,1989.3,0.001]
[1772826146882,0.62741703,1989.4,1989.0,1.2579126]
[1772826147384,1.25672347,1989.3,1989.0,0.001]
[1772826147684,1.88407732,1989.4,1989.0,0.001]
[1772826148077,0.62782006,1989.2,1989.0,0.001]
[1772826148281,1.447,1989.1,1988.7,0.001]
[1772826148486,3.6342108,1989.0,1988.4,2.21416484]
[1772826148681,0.62782006,1989.0,1988.4,2.21416484]
[1772826148882,3.63527346,1988.9,1988.2,2.2143005]
[1772826149091,3.00705596,1988.8,1988.2,2.2143005]
[1772826149293,0.6282175,1988.8,1988.2,0.95688173]
[1772826149493,1.25710262,1988.7,1988.2,0.95688173]
[1772826149895,1.25710262,1988.7,1988.1,1.25845816]
[1772826149896,1.448,1988.6,1988.1,1.25845816]
[1772826150192,0.87709958,1988.5,1987.9,2.21548717]
[1772826150596,0.87709958,1988.5,1987.9,0.001]
[1772826151995,2.21560806,1988.4,1987.9,0.001]
[1772826152506,0.95831577,1988.3,1987.9,0.001]
[1772826152877,1.25729229,1988.4,1987.9,0.001]
[1772826153197,1.25729229,1988.4,1988.0,0.001]
[1772826153574,2.21560806,1988.4,1988.0,0.001]
[1772826153899,1.25723808,1988.5,1988.0,0.001]
[1772826154101,2.21555385,1988.5,1988.0,0.001]
[1772826154605,0.95831577,1988.4,1988.0,0.001]
[1772826155602,2.21552591,1988.6,1988.0,0.001]
[1772826155771,2.21539366,1988.8,1988.0,0.93513591]
[1772826155976,1.451,1988.6,1988.0,0.93513591]
[1772826156416,1.451,1988.6,1988.1,2.19161792]
[1772826159703,1.451,1988.6,1988.2,0.93413591]
[1772826159903,2.40931577,1988.6,1988.1,1.25748201]
[1772826160425,3.66648465,1988.6,1988.1,1.25748201]
[1772826160724,0.95831577,1988.3,1988.0,0.001]
[1772826163508,2.21567416,1988.3,1988.0,0.001]
[1772826164906,2.21567416,1988.3,1987.9,0.001]
[1772826164907,0.95831577,1988.2,1987.8,0.001]
[1772826165097,0.95831577,1988.0,1987.8,0.001]
[1772826165913,0.95831577,1988.0,1987.6,0.001]
[1772826166208,0.95831577,1987.9,1987.1,5.96644062]
[1772826166808,2.21598756,1987.8,1987.1,5.96644062]
[1772826166992,0.95831577,1987.8,1987.2,0.93413591]
[1772826167186,1.455,1987.7,1987.2,0.93413591]
[1772826167613,2.41331577,1987.7,1987.2,0.93413591]
[1772826167918,2.41331577,1987.7,1987.1,5.96644062]
[1772826168094,1.455,1987.8,1987.2,0.93413591]
[1772826168902,2.41331577,1987.8,1987.2,0.93413591]
[1772826169218,2.41331577,1987.8,1987.3,1.25798822]
[1772826169938,1.455,1987.8,1987.3,2.19212413]
[1772826170296,3.67092948,1987.9,1987.3,2.19212413]
[1772826171214,1.455,1987.9,1987.4,0.93413591]
[1772826171415,2.71260924,1987.9,1987.4,0.93413591]
[1772826171714,5.0301957,1988.0,1987.4,0.93413591]
[1772826171715,1.455,1987.8,1987.4,0.93413591]
[1772826172296,2.21590208,1988.0,1987.4,0.93413591]
[1772826172499,1.456,1987.9,1987.4,0.93413591]
[1772826173194,1.456,1987.9,1987.5,1.25786163]
[1772826174231,2.71361261,1987.9,1987.5,1.25786163]
[1772826174727,0.95831577,1987.8,1987.1,1.25807398]
[1772826174930,0.95831577,1988.2,1987.2,0.93413591]
[1772826175228,2.21576572,1988.2,1987.4,0.93413591]
[1772826175597,0.95831577,1988.2,1987.4,0.93413591]
[1772826177218,2.21577536,1988.2,1987.5,1.25786163]
[1772826177929,2.21577536,1988.2,1987.5,2.17737063]
[1772826178408,3.90366361,1988.1,1987.5,2.17737063]
[1772826178728,2.35791281,1988.3,1987.6,0.919509]
[1772826178928,0.002,1987.9,1987.6,0.919509]
[1772826179304,0.002,1987.9,1987.7,1.25773507]
[1772826181531,0.002,1987.9,1987.6,2.17725831]
[1772826183833,0.002,1987.9,1987.4,0.92704946]
[1772826184141,0.002,1987.9,1987.5,1.25785112]
[1772826185316,0.002,1987.9,1987.5,2.18390058]
[1772826187542,0.90983968,1987.9,1987.4,0.001]
[1772826187741,0.90783968,1987.7,1987.1,1.25910742]
[1772826187942,0.90783968,1987.5,1987.1,0.001]
[1772826188149,0.90783968,1987.3,1986.9,0.001]
[1772826188610,3.00788731,1987.2,1986.9,0.001]
[1772826188814,3.91572699,1987.2,1986.9,0.001]
[1772826189024,1.456,1987.4,1986.9,2.18528863]
[1772826189235,2.36383968,1987.4,1986.9,0.001]
[1772826189552,3.00697692,1987.3,1986.9,0.001]
[1772826189748,3.9148166,1987.3,1986.9,0.001]
[1772826189911,0.90783968,1987.2,1986.9,0.001]
[1772826190241,3.62180616,1987.4,1986.9,0.001]
[1772826190545,3.00653205,1987.3,1986.9,0.001]
[1772826190920,3.62176593,1987.4,1986.9,0.001]
[1772826191322,3.00603282,1987.3,1986.9,0.001]
[1772826192046,1.456,1987.4,1987.0,1.25817815]
[1772826192485,1.456,1987.4,1987.0,1.25917815]
[1772826192819,3.62176481,1987.4,1987.0,1.25917815]
[1772826193025,3.62176481,1987.4,1987.0,0.001]
[1772826195351,1.456,1987.4,1987.0,0.001]
[1772826195649,2.1656403,1987.6,1987.0,0.92704946]
[1772826195823,4.46270901,1987.5,1987.0,0.92704946]
[1772826196022,1.458,1987.5,1987.0,0.92704946]
[1772826197649,0.90783968,1987.4,1987.0,1.2591371]
[1772826198322,2.71586298,1987.5,1987.0,1.2591371]
[1772826198653,3.62370266,1987.5,1987.0,1.2591371]
[1772826200256,0.90783968,1987.4,1987.0,0.001]
[1772826201154,2.71586298,1987.5,1987.0,0.92704946]
[1772826201155,2.71587571,1987.5,1987.0,0.92704946]
[1772826202052,3.62371539,1987.5,1987.0,0.92704946]
[1772826202222,2.165811,1987.4,1987.0,0.001]
[1772826202429,2.71590919,1987.5,1987.0,0.92704946]
[1772826203827,3.62374887,1987.5,1987.0,0.92704946]
[1772826204542,3.62374887,1987.5,1987.1,1.25911484]
[1772826205557,2.36583968,1987.5,1987.1,1.25911484]
[1772826205726,3.62370687,1987.5,1987.1,1.25911484]
[1772826206630,3.62370687,1987.5,1987.1,0.001]
[1772826206934,0.90783968,1987.4,1987.1,0.001]
[1772826208228,2.71587202,1987.5,1987.1,0.92704946]
[1772826208427,2.71587451,1987.5,1987.1,0.92704946]
[1772826208623,1.458,1987.5,1987.1,2.18511848]
[1772826208857,2.71586855,1987.5,1987.1,2.18511848]
[1772826209239,2.71586656,1987.5,1987.1,0.92704946]
[1772826209439,3.62370624,1987.5,1987.1,0.001]
[1772826209762,0.90783968,1987.4,1987.1,0.001]
[1772826210135,2.71586656,1987.5,1987.1,1.2591008]
[1772826210337,1.458,1987.5,1987.2,0.92604946]
[1772826210671,1.464,1987.6,1987.3,1.25798822]
[1772826210962,1.464,1987.6,1987.3,2.18403768]
[1772826211833,2.72179858,1987.6,1987.2,2.1683239]
[1772826212233,2.72179858,1987.6,1987.2,2.16833717]
[1772826212928,1.464,1987.6,1987.2,2.16833717]
[1772826213861,1.464,1987.6,1987.3,0.91031669]
[1772826215464,1.464,1987.6,1987.3,2.16828577]
[1772826216049,2.72183875,1987.6,1987.1,2.16938961]
[1772826216475,0.002,1987.5,1987.1,2.16938961]
[1772826217268,0.002,1987.5,1987.2,0.91031669]
[1772826217635,0.002,1987.5,1987.1,1.25907292]
[1772826217838,0.92020941,1987.5,1987.1,0.001]
[1772826218146,3.93129304,1987.4,1987.1,0.001]
[1772826218362,0.91820941,1987.4,1987.1,0.001]
[1772826219247,2.17619763,1987.3,1987.1,0.001]
[1772826220082,1.468,1987.2,1987.1,0.001]
[1772826221182,2.72605152,1987.2,1987.1,0.001]
[1772826222856,1.468,1987.2,1987.1,0.001]
[1772826223061,2.72605152,1987.2,1987.1,0.001]
[1772826223270,2.72605152,1987.2,1986.9,0.001]
[1772826223271,0.91820941,1987.1,1986.9,0.001]
[1772826223580,3.93290878,1987.0,1986.7,0.001]
[1772826223776,0.91820941,1987.0,1986.7,0.001]
[1772826225289,1.25824148,1986.9,1986.7,0.001]
[1772826225467,1.472,1986.8,1986.7,0.001]
[1772826228361,2.73030481,1986.8,1986.4,0.91031669]
[1772826228574,3.64851422,1986.8,1986.2,0.91141669]
[1772826228859,3.64851422,1986.8,1986.2,2.17005378]
[1772826229070,2.39020941,1986.8,1986.3,0.91031669]
[1772826229270,2.73031809,1986.8,1986.4,1.25855819]
[1772826229490,2.73031809,1986.8,1986.7,0.001]
[1772826230191,0.91820941,1987.1,1986.7,0.001]
[1772826230357,3.00958857,1987.0,1986.7,0.91131669]
[1772826230556,1.475,1986.9,1986.7,0.91131669]
[1772826230758,1.475,1986.9,1986.7,0.001]
[1772826231966,2.7332912,1986.9,1986.7,0.001]
[1772826233192,3.65150061,1986.9,1986.7,0.001]
[1772826233490,0.91820941,1986.8,1986.3,2.16893225]
[1772826233663,0.91820941,1986.8,1986.3,2.16891412]
[1772826234204,1.25836814,1986.7,1986.3,0.91031669]
[1772826234499,0.91820941,1986.6,1986.2,1.25978161]
[1772826234698,1.477,1986.5,1986.2,0.0011]
[1772826234906,1.477,1986.5,1986.2,1.25977562]
[1772826235699,1.477,1986.5,1986.2,1.25978129]
[1772826236600,2.7354961,1986.5,1986.2,0.0011]
[1772826237373,1.477,1986.5,1986.2,0.0011]
[1772826237574,0.9563135,1986.8,1986.3,0.96443078]
[1772826237806,1.478,1986.7,1986.3,0.96443078]
[1772826237980,0.9563135,1987.0,1986.3,0.96443078]
[1772826237981,1.478,1986.6,1986.3,0.96443078]
[1772826239274,1.478,1986.6,1986.3,2.22299887]
[1772826239488,1.25837461,1986.7,1986.3,2.22299887]
[1772826239694,1.479,1986.6,1986.3,2.22299887]
[1772826241103,1.479,1986.6,1986.4,0.96443078]
[1772826241474,1.479,1986.6,1986.5,1.25849484]
[1772826241689,1.479,1986.6,1986.4,5.99865854]
[1772826241882,2.7374375,1986.6,1986.3,0.001]
[1772826242082,2.73743193,1986.6,1986.3,0.001]
[1772826242318,2.73743193,1986.6,1986.2,0.0011]
[1772826242609,0.93271307,1986.5,1986.2,0.0011]
[1772826243409,1.25855819,1986.4,1986.2,0.0011]
[1772826243782,2.19125613,1986.5,1986.0,2.09494528]
[1772826244487,1.479,1986.6,1986.1,0.91498406]
[1772826244707,2.73744616,1986.6,1986.1,0.91498406]
[1772826244911,0.93271307,1986.5,1986.1,0.91498406]
[1772826245118,0.93271307,1986.5,1985.9,2.17490288]
[1772826245583,1.25855819,1986.4,1985.9,2.17490288]
[1772826246179,2.19127126,1986.4,1985.9,2.17490288]
[1772826246413,0.91608406,1985.9,1985.5,2.1740747]
[1772826246985,1.84879713,1985.9,1985.5,1.25912127]
[1772826247185,0.91608406,1985.9,1985.6,0.91498406]
[1772826249908,0.91608406,1985.9,1985.6,1.25901751]
[1772826250113,0.91608406,1985.9,1985.5,1.25908523]
[1772826250633,0.91608406,1985.9,1985.5,2.17406929]
[1772826251224,0.91608406,1985.9,1985.6,0.91498406]
[1772826251821,0.91608406,1985.9,1985.7,1.25900186]
[1772826252029,0.91608406,1985.9,1985.6,2.1739969]
[1772826252233,1.481,1986.0,1985.6,2.1739969]
[1772826253341,1.481,1986.0,1985.7,0.0011]
[1772826253743,2.73981578,1986.0,1985.7,0.0011]
[1772826254037,3.67252885,1986.0,1985.7,0.0011]
[1772826254338,2.19152885,1986.0,1985.7,0.0011]
[1772826254540,3.67352885,1986.0,1985.7,0.0011]
[1772826255438,1.482,1986.0,1985.7,0.0011]
[1772826255943,2.74081409,1986.0,1985.7,0.0011]
[1772826256837,2.74082022,1986.0,1985.7,0.0011]
[1772826257010,3.67353329,1986.0,1985.7,0.0011]
[1772826257416,1.482,1985.9,1985.7,0.0011]
[1772826257621,2.41471307,1985.9,1985.7,0.0011]
[1772826260146,3.67359532,1985.9,1985.7,0.0011]
[1772826260344,0.93271307,1985.8,1985.5,0.0011]
[1772826260548,0.93271307,1985.7,1985.3,0.36465021]
[1772826260739,0.93271307,1985.7,1985.3,1.62389622]
[1772826261337,0.93271307,1985.7,1985.3,2.53888028]
[1772826262621,2.19172819,1985.7,1985.3,2.53888028]
[1772826263018,2.19172819,1985.7,1985.3,2.53887629]
[1772826263336,0.93271307,1985.6,1985.3,1.62389681]
[1772826264144,2.41571307,1985.6,1985.3,1.62389681]
[1772826264447,3.67480338,1985.6,1985.3,0.36465021]
[1772826265345,0.93271307,1985.5,1985.3,0.36465021]
[1772826266126,0.93271307,1985.5,1985.4,0.0011]
[1772826270225,2.19184175,1985.5,1985.4,0.0011]
[1772826270424,0.93271307,1985.5,1985.4,0.0011]
[1772826271254,0.93271307,1985.4,1985.0,0.0011]
[1772826271458,0.93271307,1985.3,1984.8,0.91608406]
[1772826271629,1.25912868,1985.5,1984.8,0.0011]
[1772826271630,0.93271307,1985.1,1984.8,0.0011]
[1772826272334,0.93271307,1985.1,1984.6,0.97429375]
[1772826272638,2.18576711,1985.0,1984.6,0.97429375]
[1772826272839,3.00967836,1984.9,1984.4,0.97429375]
[1772826273051,2.41132127,1984.8,1984.4,0.97429375]
[1772826273425,2.41132127,1984.8,1984.2,0.97429375]
[1772826273426,2.45331839,1984.8,1984.2,0.97429375]
[1772826273644,0.92632127,1984.6,1984.0,1.26008064]
[1772826273850,0.92632127,1984.5,1984.0,0.97429375]
[1772826274842,2.18614196,1984.5,1984.0,2.23433788]
[1772826275374,0.92632127,1984.4,1983.9,0.97429375]
[1772826275544,1.486,1984.3,1983.9,0.97429375]
[1772826276661,2.41232127,1984.3,1983.8,1.26019501]
[1772826276958,3.67221729,1984.3,1983.8,2.23448876]
[1772826277329,0.92632127,1984.2,1983.8,2.23448876]
[1772826277567,0.92632127,1984.2,1984.1,0.0011]
[1772826278139,1.486,1984.3,1984.1,0.0011]
[1772826278439,1.487,1984.4,1984.1,0.0011]
[1772826279752,3.6731484,1984.4,1984.1,0.0011]
[1772826279957,0.92632127,1984.3,1984.1,0.0011]
[1772826280651,2.18608443,1984.5,1984.1,0.0011]
[1772826280962,1.487,1984.3,1984.1,0.0011]
[1772826281337,1.487,1984.3,1984.1,1.26111713]
[1772826281768,1.487,1984.3,1984.1,0.0011]
[1772826283760,1.487,1984.3,1983.8,0.97539375]
[1772826283761,0.96831839,1984.2,1983.8,0.97539375]
[1772826283959,1.89463966,1984.2,1983.8,2.2355961]
[1772826284133,1.89463966,1984.2,1983.8,1.26130235]
[1772826285369,0.92632127,1984.5,1983.9,0.97429375]
[1772826285666,2.74795567,1984.2,1983.9,0.97429375]
[1772826286043,2.74795567,1984.2,1983.8,0.0011]
[1772826286236,4.64259533,1984.2,1983.8,0.0011]
[1772826286767,0.92632127,1984.1,1983.8,0.0011]
[1772826287669,2.18640191,1984.0,1983.5,0.97429375]
[1772826287871,2.18640191,1984.0,1983.5,2.23468381]
[1772826288246,0.92632127,1983.9,1983.5,2.23468381]
[1772826288446,0.92632127,1983.9,1983.5,2.23467196]
[1772826288654,0.92632127,1983.9,1983.5,0.97429375]
[1772826288977,0.92632127,1983.7,1983.2,1.26057663]
[1772826289286,2.41532127,1983.6,1983.1,0.97429375]
[1772826289464,2.41532127,1983.6,1983.1,2.23489104]
[1772826289650,3.67566605,1983.6,1983.1,2.23489104]
[1772826290167,2.41532127,1983.6,1983.1,2.23489104]
[1772826290877,2.41532127,1983.6,1983.2,0.97429375]
[1772826291067,0.92632127,1983.8,1983.2,0.97429375]
[1772826291266,1.489,1983.7,1983.2,0.97429375]
[1772826291779,1.489,1983.7,1983.3,1.26052538]
[1772826291956,0.92632127,1983.8,1983.3,1.26052538]
[1772826292149,1.488,1983.8,1983.4,0.97429375]
[1772826293655,1.488,1983.8,1983.5,1.26039828]
[1772826293957,0.92632127,1983.8,1983.3,2.23477236]
[1772826294158,2.1865791,1983.8,1983.3,2.23477236]
[1772826294379,0.92632127,1983.8,1983.3,2.23477236]
[1772826294582,3.67442809,1984.0,1983.4,0.97429375]
[1772826294772,0.92632127,1983.9,1983.4,0.97429375]
[1772826296154,0.95354131,1983.8,1983.2,0.96500467]
[1772826297273,1.489,1983.9,1983.2,0.96500467]
[1772826297484,2.44254131,1983.9,1983.2,0.96500467]
[1772826298178,0.95354131,1983.7,1983.2,0.96500467]
[1772826300282,0.95354131,1983.7,1983.3,2.22553005]
[1772826300984,1.26030228,1983.7,1983.2,0.96500467]
[1772826301280,1.26030228,1983.7,1983.0,4.31479684]
[1772826301281,0.95354131,1983.6,1983.0,4.31479684]
[1772826301654,2.21374899,1983.8,1983.1,0.96500467]
[1772826302173,0.99410294,1983.7,1983.1,0.96500467]
[1772826302386,2.25441694,1983.7,1983.2,2.17887097]
[1772826302687,1.49,1983.8,1983.3,0.91828203]
[1772826302856,1.49,1983.8,1983.1,0.91938203]
[1772826303059,0.99410294,1983.6,1983.1,2.18000068]
[1772826303558,1.49,1983.7,1983.2,0.91828203]
[1772826303753,0.99410294,1983.8,1983.2,0.91828203]
[1772826303979,3.01189506,1983.7,1983.2,0.91828203]
[1772826304182,0.99410294,1983.8,1983.2,0.91828203]
[1772826304385,4.0059456,1983.7,1983.3,1.26052538]
[1772826304587,1.26025541,1983.8,1983.3,0.91828203]
[1772826304588,0.99410294,1983.8,1983.3,0.91828203]
[1772826304904,9.26116101,1984.0,1983.1,0.0011]
[1772826304905,3.01239,1983.7,1983.1,0.0011]
[1772826305185,2.83530858,1983.6,1983.2,0.91828203]
[1772826305384,1.33169177,1984.0,1983.2,0.91828203]
[1772826305586,0.99410294,1983.9,1983.2,0.91828203]
[1772826306380,2.25431062,1983.8,1983.3,1.26052538]
[1772826306587,0.99410294,1983.8,1983.3,2.17880741]
[1772826307093,0.99410294,1983.8,1983.2,1.26053722]
[1772826307292,1.96474826,1983.8,1983.1,2.18000633]
[1772826307466,0.99410294,1983.7,1983.1,2.18000633]
[1772826309318,0.99410294,1983.7,1983.2,0.91828203]
[1772826309460,1.2602409,1983.8,1983.2,0.91828203]
[1772826309461,3.46130183,1983.9,1983.2,0.91828203]
[1772826309656,6.21144694,1983.9,1983.2,0.91828203]
[1772826310006,0.99410294,1983.8,1983.2,0.91828203]
[1772826311192,0.99410294,1983.8,1983.3,2.17880741]
[1772826311395,1.69783951,1983.7,1983.4,0.91828203]
[1772826313365,1.69783951,1983.7,1983.5,1.26039828]
[1772826313689,1.69783951,1983.7,1983.5,2.17868031]
[1772826314659,0.001,1984.1,1983.6,0.91828203]
[1772826316063,0.001,1984.1,1983.7,1.26027121]
[1772826316266,0.99510294,1984.1,1983.7,1.26027121]
[1772826316558,0.99510294,1984.1,1983.6,2.1786105]
[1772826316969,0.001,1984.1,1983.7,0.59282827]
[1772826317397,0.99510294,1984.1,1983.7,0.59282827]
[1772826317767,0.99510294,1984.1,1983.5,1.85317519]
[1772826318659,0.99410294,1984.0,1983.5,1.85317519]
[1772826318868,0.99410294,1984.0,1983.6,0.59291552]
[1772826319791,0.99410294,1984.0,1983.5,1.26034692]
[1772826320486,0.99410294,1984.0,1983.4,5.63460985]
[1772826320487,0.99410294,1984.0,1983.4,1.85335007]
[1772826320688,0.99410294,1983.8,1983.4,1.85335007]
[1772826321064,0.99410294,1983.8,1983.4,1.85334261]
[1772826321289,0.99410294,1983.8,1983.4,0.59291552]
[1772826321489,0.99410294,1983.8,1983.2,1.26058708]
[1772826321691,0.99410294,1983.8,1983.1,1.26170301]
[1772826322090,0.99410294,1983.8,1983.1,1.85475088]
[1772826322503,0.99410294,1983.8,1983.1,1.26170301]
[1772826322704,0.99410294,1983.8,1983.1,1.85475088]
[1772826322882,2.25437415,1983.7,1983.1,1.85475088]
[1772826323082,2.25437415,1983.7,1983.2,0.59310607]
[1772826323689,0.99410294,1983.7,1983.2,0.59310607]
[1772826324008,0.99410294,1983.7,1983.1,1.26170301]
[1772826324205,0.99410294,1983.5,1983.1,1.26170301]
[1772826325478,0.29977011,1983.6,1983.2,0.59319271]
[1772826326272,0.29977011,1983.6,1983.3,0.59434047]
[1772826326978,0.29977011,1983.6,1983.4,1.26046183]
[1772826327411,0.29977011,1983.6,1983.3,1.26158047]
[1772826327886,0.29977011,1983.6,1983.3,1.85492276]
[1772826328810,0.29977011,1983.6,1983.4,0.59334229]
[1772826329184,0.29977011,1983.6,1983.4,1.26042082]
[1772826329378,0.29977011,1983.6,1983.3,0.0011]
[1772826329608,1.29387305,1983.6,1983.3,1.26162179]
[1772826330307,0.99410294,1983.5,1983.3,0.0011]
[1772826330502,0.99410294,1983.5,1983.3,1.26162168]
[1772826331430,0.99410294,1983.5,1983.3,0.0011]
[1772826332128,0.94189388,1983.6,1983.3,0.0011]
[1772826333233,1.24166399,1983.5,1983.3,0.0011]
[1772826335032,2.50207884,1983.5,1983.1,1.84794511]